Cogmind - Beta 15 @@@ ROGUE MODE // 2025.06.10 @ 18:17:03 Player: BlobtheGreat Result: Destroyed by G-73 Enforcer with Heavy Laser Performance ------------- Evolutions (6) 3000 Regions Visited (11) 2200 Robots Destroyed (81) 405 Value Destroyed (2725) 2725 Prototype IDs (23) 460 Alien Tech Used (0) 0 Bonus (1786) 1786 TOTAL SCORE: 10576 Bonus ------- Aligned with FarCom 300 Met Warlord at Base 500 MAIN.C Attacked Warlord 500 Warlord Defense Kills 554 Friendly Fire -68 Cogmind --------- Core Integrity 0/1150 Matter 300/300 Energy 99/100 System Corruption 3% Temperature Cool (9) Movement Core (50) Location -4/Warlord Parts ------- > --- POWER (2) -------- (None) > --- PROPULSION (6) --- (None) > --- UTILITY (7) ------ (None) > --- WEAPON (4) ------- (None) > --- INVENTORY (5) ---- Reinforced Deuterium Engine Cloak of Protection Vortex Catalyst Activator Katana Peak State ------------ > --- POWER ------------ Light Deuterium Engine Light Nuclear Core > --- PROPULSION ------- Advanced Treads Advanced Treads Advanced Treads Advanced Treads Advanced Treads Medium Treads > --- UTILITY ---------- High-capacity Storage Unit Structural Scanner Advanced Targeting Computer Hardened Light Armor Plating Hardened Medium Armor Plating Improved Medium Armor Plating > --- WEAPON ----------- Autogun Autogun High-powered Shotgun Hypervelocity Gauss Cannon > --- INVENTORY -------- Light Nuclear Core Reinforced Deuterium Engine Light Antimatter Reactor Light Treads Armored Treads Advanced Heat Sink Seismic Detector Cloak of Protection High-powered Shock Rifle Particle Gun Heavy Laser Heavy Assault Rifle High-powered Shotgun Flak Cannon Hypervelocity Gauss Cannon Grenade Launcher Heavy Rocket Launcher Heavy Rocket Launcher Katana Great Axe [Rating: 59] Favorites ----------- Power Light Nuclear Core Engine Ion Engine Power Core Light Nuclear Core Propulsion Advanced Treads Treads Advanced Treads Leg Aluminum Leg Utility High-capacity Storage Unit Device Structural Scanner Storage High-capacity Storage Unit Processor Advanced Targeting Computer Protection Hardened Light Armor Plating Weapon Autogun Energy Gun Backup Laser III Ballistic Gun Autogun Ballistic Cannon Hypervelocity Gauss Cannon Launcher Grenade Launcher Slashing Weapon Great Axe Build | -11 -10 -10 -10 -9 -8 -7 -6 -5 -4 -4 -4 ------- Run | Yrd Mat Min Exi Min Mat Fac Fac Fac Fac Upp War Slots Evolved 12 | . . . . . 4 2 2 2 2 . . Power 1 | . . . . . . . . 1 . . . Propulsion 4 | . . . . . 2 . . . 2 . . Utility 5 | . . . . . 2 . 2 1 . . . Weapon 2 | . . . . . . 2 . . . . . Parts Attached 61 | 7 8 . . 6 11 1 3 7 3 6 9 Power 9 | 1 . . . 2 2 . . 2 1 . 1 Engine 6 | 1 . . . 2 1 . . 2 . . . Core 3 | . . . . . 1 . . . 1 . 1 Reactor . | . . . . . . . . . . . . Propulsion 19 | 2 2 . . . 5 . . . 2 2 6 Treads 14 | . 2 . . . 5 . . . 2 2 3 Leg 5 | 2 . . . . . . . . . . 3 Wheel . | . . . . . . . . . . . . Hover . | . . . . . . . . . . . . Flight . | . . . . . . . . . . . . Utility 15 | 2 4 . . 1 2 . 2 4 . . . Device 5 | 1 1 . . . 1 . . 2 . . . Storage 3 | 1 1 . . 1 . . . . . . . Processor 1 | . . . . . . . 1 . . . . Hackware . | . . . . . . . . . . . . Protection 6 | . 2 . . . 1 . 1 2 . . . Artifact . | . . . . . . . . . . . . Weapon 18 | 2 2 . . 3 2 1 1 1 . 4 2 Energy Gun 3 | 1 1 . . . . . . . . 1 . Energy Cannon . | . . . . . . . . . . . . Ballistic Gun 7 | 1 1 . . 2 . . 1 . . 2 . Ballistic Cannon 3 | . . . . . 1 . . 1 . 1 . Launcher 4 | . . . . 1 1 1 . . . . 1 Special Weapon . | . . . . . . . . . . . . Impact Weapon . | . . . . . . . . . . . . Slashing Weapon 1 | . . . . . . . . . . . 1 Piercing Weapon . | . . . . . . . . . . . . Special Melee Weapon . | . . . . . . . . . . . . Unidentified Prototypes . | . . . . . . . . . . . . Parts Lost 43 | . 1 . . 4 4 . 1 1 . 18 14 Power 8 | . . . . 2 1 . . 1 . 1 3 Propulsion 17 | . . . . . 3 . . . . 6 8 Utility 6 | . . . . 1 . . . . . 5 . Weapon 12 | . 1 . . 1 . . 1 . . 6 3 Highest Loss Streak 15 | . 1 . . 3 4 . 1 1 . 15 9 To Critical Strikes . | . . . . . . . . . . . . Average Backups 15 | 3 14 15 15 14 17 19 19 19 18 16 15 Power 2 | . 1 2 1 . 2 3 3 2 2 3 3 Propulsion 1 | 2 2 2 2 1 3 2 2 3 2 1 . Utility 4 | . 5 6 6 6 5 5 3 2 3 2 3 Weapon 7 | . 4 5 5 4 6 7 9 10 11 9 8 Tool/Special . | . . . . . . . . . . . . Unused Backups 20 | . . . 1 1 1 3 2 . . . 12 Power 5 | . . . 1 . . . 1 . . . 3 Propulsion 2 | . . . . 1 . 1 . . . . . Utility 6 | . . . . . 1 2 . . . . 3 Weapon 7 | . . . . . . . 1 . . . 6 Tool/Special . | . . . . . . . . . . . . Average Slot Usage (%) 80 | . 99 100 100 97 98 99 99 90 93 59 39 Engine 7 | . 14 14 14 13 6 . . 4 5 2 4 Core 2 | . . . . . 2 7 6 1 4 5 4 Treads 22 | . 25 28 28 28 35 30 26 23 30 16 10 Device 6 | . 7 14 14 5 16 7 6 5 5 2 . Storage 8 | . 14 14 14 14 9 7 6 5 5 5 4 Processor 2 | . . . . . . . 6 5 5 5 5 Protection 7 | . 6 . . 8 10 15 19 17 15 6 . Energy Gun 3 | . 6 . . . . . . . . 1 8 Ballistic Gun 14 | . 21 28 28 19 13 22 19 17 15 7 . Ballistic Cannon 2 | . . . . . 3 6 6 4 5 5 . Peak Build Rating 59 | 7 10 10 10 12 31 35 42 52 59 59 42 Average Rating 25 | 5 9 10 9 10 22 34 40 47 57 39 26 On Entrance 23 | . 7 10 10 10 11 31 35 42 48 59 16 Naked Turns 1 | . . . . . . . . . . . 1 Heaviest Build 95 | 15 35 31 31 56 68 74 79 95 90 90 68 Greatest Support 138 | 20 40 40 40 40 88 88 88 88 138 138 120 Greatest Overweight (x) 20 | . 4 . . 1 . . . 1 . 20 1 Average Overweight (x) . | . . . . . . . . . . 1 . Largest Inventory Capacity 20 | 8 15 15 15 20 20 20 20 20 20 20 20 Average Capacity 18 | 7 14 15 15 19 20 20 20 20 20 20 19 Most Carried 20 | 6 15 15 15 15 20 20 20 20 20 20 20 Average Carried 16 | 3 14 15 14 14 17 19 19 19 18 16 16 Final Capacity 20 | 8 15 15 15 20 20 20 20 20 20 20 5 Final Carried 20 | 6 15 15 15 13 20 20 19 20 20 13 5 Class Distribution -------------------- 72% | Mutant 17% | Tank 9% | Scavenger-Tank Dominant Class ---------------- Mutant | -10/Materials Mutant | -10/Mines Mutant | -10/Exiles Mutant | -9/Mines Mutant | -8/Materials Tank | -7/Factory Tank | -6/Factory Tank | -5/Factory Scavenger-Tank | -4/Factory Mutant | -4/Upper Caves Mutant | -4/Warlord Resources | -11 -10 -10 -10 -9 -8 -7 -6 -5 -4 -4 -4 ----------- Run | Yrd Mat Min Exi Min Mat Fac Fac Fac Fac Upp War Matter Collected 3364 | 303 457 . . 355 398 114 424 301 70 692 250 Remotely . | . . . . . . . . . . . . Salvage Created 3027 | 93 726 . . 50 520 235 174 266 46 725 192 Parts 153 | 6 59 . . 4 25 16 7 7 3 22 4 Haulers Intercepted 8 | . 2 . . . 2 2 1 1 . . . Recyclers Shooed 4 | . 1 . . 1 1 1 . . . . . Parts Field Recycled . | . . . . . . . . . . . . Retrieved Matter . | . . . . . . . . . . . . Parts Self-Destructed 15 | . . . . . . . . . . 15 . Prevented . | . . . . . . . . . . . . Kills | -11 -10 -10 -10 -9 -8 -7 -6 -5 -4 -4 -4 ------- Run | Yrd Mat Min Exi Min Mat Fac Fac Fac Fac Upp War Combat Hostiles Destroyed 67 | . 14 . . 15 11 4 1 3 1 14 4 Guns 29 | . 14 . . 2 3 1 1 1 1 5 1 Cannons 12 | . . . . . 4 1 . 2 . 5 . AOE 26 | . . . . 13 4 2 . . . 4 3 Classes Destroyed 16 | 2 6 . . 3 3 1 . 1 . . . Worker 6 | . . . . 1 1 1 2 . 1 . . Builder 2 | . 1 . . . . 1 . . . . . Tunneler 2 | 1 1 . . . . . . . . . . Hauler 8 | . 2 . . . 2 2 1 1 . . . Recycler 3 | 1 . . . . 1 1 . . . . . Mechanic 3 | . . . . . 2 . 1 . . . . Operator 1 | . 1 . . . . . . . . . . Watcher 3 | . 3 . . . . . . . . . . Swarmer 13 | . 3 . . . 4 3 . 1 1 1 . Grunt 23 | . 11 . . . 5 . 1 . . 3 3 Brawler 3 | . . . . . . . . 1 . 2 . Duelist 2 | . . . . . 1 . . . . 1 . Sentry 4 | . . . . . 1 . . 1 . 2 . Demolisher 1 | . . . . 1 . . . . . . . Programmer 3 | . . . . . . 1 . . . 1 1 Assembled 14 | . . . . 14 . . . . . . . Thug 1 | . . . . . . . . . . 1 . Savage 3 | . . . . . . . . . . 3 . Best Kill Streak 8 | 1 4 . . 7 6 3 1 1 1 8 3 Combat Bots Only 8 | . 3 . . 7 6 2 1 1 1 8 3 Max Kills in Single Turn 4 | 1 2 . . 4 2 2 1 1 1 3 3 Gunslinging . | . . . . . . . . . . . . Exploded 4 | . . . . 4 2 2 . . . 3 3 Melee . | . . . . . . . . . . . . Uniques/NPCs Destroyed . | . . . . . . . . . . . . Combat | -11 -10 -10 -10 -9 -8 -7 -6 -5 -4 -4 -4 -------- Run | Yrd Mat Min Exi Min Mat Fac Fac Fac Fac Upp War Hostile Shots Fired 440 | . 34 . . 30 59 8 8 18 . 103 180 Missed 142 | . 10 . . 12 16 2 2 6 . 21 73 Hits 298 | . 24 . . 18 43 6 6 12 . 82 107 Melee 20 | . . . . 1 . . . . . 16 3 Projectile 278 | . 24 . . 17 43 6 6 12 . 66 104 AOE 8 | . . . . 8 . . . . . . . Critical Strikes 14 | . . . . . . . . . . 8 6 Part Disruptions 1 | . . . . . . . . . . . 1 Damage Taken 6882 | . 364 . . 532 668 89 114 278 71 2274 2492 Core 1352 | . 65 . . 42 62 . 19 1 26 350 787 Absorbed by Shields . | . . . . . . . . . . . . Regen/Repaired (Parts) 139 | . . . . . . . . . . . 139 Core Remaining (%) 90 | 100 . . . 57 88 100 97 99 . . . Volleys Fired 203 | 12 47 . . 21 36 14 13 12 2 37 9 Largest 4 | 2 2 . . 2 2 4 4 4 4 4 2 Hottest 196 | 60 60 . . 43 60 103 108 122 122 196 80 Shots Fired 485 | 13 94 . . 27 59 51 50 42 8 124 17 Gun 351 | 13 94 . . 9 36 39 37 30 6 73 14 Cannon 104 | . . . . . 20 11 13 10 2 48 . Launcher 30 | . . . . 18 3 1 . 2 . 3 3 Special . | . . . . . . . . . . . . Kinetic 412 | 12 73 . . 9 56 50 50 40 8 114 . Thermal 21 | . . . . . . . . . . 7 14 Explosive 30 | . . . . 18 3 1 . 2 . 3 3 Electromagnetic 22 | 1 21 . . . . . . . . . . Robot Hit Streak 10 | 7 7 . . 6 8 8 9 10 1 10 8 Robot Miss Streak 7 | 2 4 . . 1 6 7 5 2 3 5 1 Penetration Max . | . . . . . . . . . . . . Secondary Targets 1 | . 1 . . . . . . . . . . Max Gunslinging Chain 1 | . 1 . . . . . . . . . . Shots Hit Robots 289 | 10 56 . . 9 37 31 31 25 2 76 12 Core Hits 246 | 3 32 . . 34 42 17 29 11 2 65 11 Critical Kills 3 | . . . . . . . . 2 . 1 . Critical Parts Destroyed 7 | . . . . . . . 1 1 . 5 . Critical Strikes 14 | . . . . . . . 1 3 . 10 . Destroy 14 | . . . . . . . 1 3 . 10 . Melee Attacks . | . . . . . . . . . . . . Impact . | . . . . . . . . . . . . Slashing . | . . . . . . . . . . . . Piercing . | . . . . . . . . . . . . Sneak Attacks . | . . . . . . . . . . . . Combat Hostiles . | . . . . . . . . . . . . Follow-up Attacks . | . . . . . . . . . . . . Damage Inflicted 7683 | 120 841 . . 955 982 903 650 477 35 2011 709 Guns 3581 | 120 838 . . 81 309 410 329 389 35 877 193 Cannons 1355 | . . . . . 376 97 273 62 . 547 . Explosions 2688 | . . . . 870 293 396 . 26 . 587 516 Melee . | . . . . . . . . . . . . Ramming 59 | . 3 . . 4 4 . 48 . . . . Kinetic 4457 | 108 640 . . 81 685 507 602 451 35 1348 . Thermal 501 | . . . . . . 232 . . . 76 193 Explosive 2456 | . . . . 870 293 164 . 26 . 587 516 Electromagnetic 210 | 12 198 . . . . . . . . . . Impact . | . . . . . . . . . . . . Slashing . | . . . . . . . . . . . . Piercing . | . . . . . . . . . . . . Highest Corruption 18 | . 2 2 2 2 . 1 . . . 18 18 Average Corruption 5 | . 2 2 2 2 . 1 . . . 12 7 Corruption Purged . | . . . . . . . . . . . . Corruption Blocked . | . . . . . . . . . . . . Effects 82 | . 15 1 7 14 . 1 . . . 38 6 Message Errors 19 | . 2 1 2 2 . . . . . 12 . Matter Fused 27 | . 5 . 3 6 . . . . . 8 5 Heat Flow Errors 12 | . 3 . 1 1 . . . . . 7 . Energy Discharges 8 | . 3 . . 1 . . . . . 3 1 Parts Rejected 1 | . . . . . . . . . . 1 . Parts Fused 1 | . . . . . . . . . . 1 . Data Loss (minor) 8 | . 2 . 1 1 . 1 . . . 3 . Data Loss (major) 2 | . . . . 1 . . . . . 1 . Misfires 2 | . . . . 2 . . . . . . . Alerts 1 | . . . . . . . . . . 1 . Weapon Failures 1 | . . . . . . . . . . 1 . Overload Shots . | . . . . . . . . . . . . Overflow Damage 153 | . . . . 12 4 . . . . 1 136 Projectiles . | . . . . . . . . . . . . Explosions 153 | . . . . 12 4 . . . . 1 136 Melee . | . . . . . . . . . . . . Knockbacks 22 | . . . . . 15 1 4 . . 2 . Impact 1 | . . . . . . . 1 . . . . Kinetic 19 | . . . . . 13 1 3 . . 2 . Secondary 2 | . . . . . 2 . . . . . . Self-Inflicted Damage 433 | . . . . 44 . . . 4 . 62 323 Shots 8 | . . . . 2 . . . 1 . 1 4 Rammed 6 | . 2 . . 2 . . 2 . . . . Targets Rammed 8 | . 2 . . 2 1 . 3 . . . . Kicked . | . . . . . . . . . . . . Crushed 2 | . . . . . 1 . 1 . . . . Highest Temperature 686 | . 275 . 119 107 159 255 182 198 66 686 283 Average Temperature 115 | . 56 . 62 23 50 74 68 65 38 240 160 Received Heat Transfer 1163 | . 177 . . . 351 . 54 45 . 273 263 Effects 42 | . . . . . . . . . . 42 . Shutdowns 12 | . . . . . . . . . . 12 . Energy Bleed 2 | . . . . . . . . . . 2 . Interference 6 | . . . . . . . . . . 6 . Matter Decay 5 | . . . . . . . . . . 5 . Short Circuit 2 | . . . . . . . . . . 2 . Damage (minor) 5 | . . . . . . . . . . 5 . Damage (major) 10 | . . . . . . . . . . 10 . Siege Activations . | . . . . . . . . . . . . Martial Activations . | . . . . . . . . . . . . Shielding Activations . | . . . . . . . . . . . . Robots Disrupted . | . . . . . . . . . . . . Combat Hostiles . | . . . . . . . . . . . . Robots Corrupted . | . . . . . . . . . . . . Combat Hostiles . | . . . . . . . . . . . . Parts Fried . | . . . . . . . . . . . . Impact Corruptions . | . . . . . . . . . . . . Robots Melted . | . . . . . . . . . . . . Combat Hostiles . | . . . . . . . . . . . . Parts Melted 3 | . . . . . . . . 1 . . 2 Heat Transferred 792 | . . . . . . 200 . . . 148 444 Parts Sabotaged 1 | . . . . . . . . . . . 1 Parts Stolen . | . . . . . . . . . . . . Parts Stripped . | . . . . . . . . . . . . Power Chain Reactions . | . . . . . . . . . . . . Alert | -11 -10 -10 -10 -9 -8 -7 -6 -5 -4 -4 -4 ------- Run | Yrd Mat Min Exi Min Mat Fac Fac Fac Fac Upp War Maximum Alert Level 1 | . . . . . . 1 . . . . . Low Security (%) 98 | 100 100 100 . 100 100 78 100 100 100 . . Level 1 1 | . . . . . . 21 . . . . . Level 2 . | . . . . . . . . . . . . Level 3 . | . . . . . . . . . . . . Level 4 . | . . . . . . . . . . . . Level 5 . | . . . . . . . . . . . . High Security . | . . . . . . . . . . . . Max Security . | . . . . . . . . . . . . Peak Influence 236 | 5 126 . . 23 160 236 86 30 20 . . Initial 86 | . . . . . . . 86 . . . . Average 31 | . 33 . . 2 55 134 20 6 1 . . Influence Increases 1817 | 10 424 . . 122 324 323 42 77 25 210 260 Destroy 0b10 Robot/C 980 | . 280 . . 20 220 80 20 60 20 200 80 Destroy 0b10 Robot/NC 140 | 10 40 . . 5 30 25 20 5 5 . . Destroy Leader 142 | . 60 . . . 44 14 2 12 . 10 . Successful Hack 13 | . 13 . . . . . . . . . . Disable Machine 180 | . . . . 15 15 150 . . . . . Destroy Structure 137 | . 1 . . 82 15 39 . . . . . Lose Combat Pursuer 225 | . 30 . . . . 15 . . . . 180 Influence Decreases 1658 | 10 424 . . 122 324 146 219 77 25 210 101 Entered New Map 91 | . . . . . . . 91 . . . . Time Decay 1294 | 10 414 . . 99 294 146 128 77 25 86 15 Lost Part 273 | . 10 . . 23 30 . . . . 124 86 Squads Dispatched 22 | . 2 . . 1 4 3 4 7 1 . . Investigation 3 | . 1 . . . 1 . . . 1 . . Extermination 2 | . . . . . . 1 . 1 . . . Reinforcement 8 | . 1 . . 1 1 2 2 1 . . . Assault 2 | . . . . . 2 . . . . . . Garrison 7 | . . . . . . . 2 5 . . . Intercept . | . . . . . . . . . . . . Searches Triggered . | . . . . . . . . . . . . Construction Impeded 1 | . . . . 1 . . . . . . . Haulers Reinforced 2 | . . . . . . 1 1 . . . . Active Scanning Responses . | . . . . . . . . . . . . Cargo Convoy Interrupts . | . . . . . . . . . . . . Stealth | -11 -10 -10 -10 -9 -8 -7 -6 -5 -4 -4 -4 --------- Run | Yrd Mat Min Exi Min Mat Fac Fac Fac Fac Upp War Distress Signals 8 | . 2 . . 1 . . 1 2 1 . 1 Communications Jammed . | . . . . . . . . . . . . Distress Signals . | . . . . . . . . . . . . Times Spotted 187 | . 20 . . 15 17 11 12 26 6 13 67 Peak Tracking Total 39 | . 3 . . 7 4 3 4 3 4 7 39 Tactical Retreats 7 | . 2 . . . . 1 . . . . 4 Traps | -11 -10 -10 -10 -9 -8 -7 -6 -5 -4 -4 -4 ------- Run | Yrd Mat Min Exi Min Mat Fac Fac Fac Fac Upp War Traps Triggered 5 | . 4 . . . . . . 1 . . . Indirectly . | . . . . . . . . . . . . Trap Hack Attempts . | . . . . . . . . . . . . Triggered . | . . . . . . . . . . . . Disarmed . | . . . . . . . . . . . . Reprogrammed . | . . . . . . . . . . . . Reused . | . . . . . . . . . . . . Traps Extracted . | . . . . . . . . . . . . Installed . | . . . . . . . . . . . . Triggered . | . . . . . . . . . . . . Machines | -11 -10 -10 -10 -9 -8 -7 -6 -5 -4 -4 -4 ---------- Run | Yrd Mat Min Exi Min Mat Fac Fac Fac Fac Upp War Machines Disabled 14 | . . . . 1 1 10 . . . . 2 Max in Single Turn 10 | . . . . 1 1 10 . . . . 2 Garrison Access 1 | . . . . . 1 . . . . . . Machines Repaired . | . . . . . . . . . . . . Machines Dismantled . | . . . . . . . . . . . . Machines Sabotaged . | . . . . . . . . . . . . Overloaded Fab Kills . | . . . . . . . . . . . . Hacking | -11 -10 -10 -10 -9 -8 -7 -6 -5 -4 -4 -4 --------- Run | Yrd Mat Min Exi Min Mat Fac Fac Fac Fac Upp War Machines Accessed 18 | . 5 . 1 1 1 . . 1 . . 9 Terminals 7 | . 5 . . 1 1 . . . . . . Fabricators . | . . . . . . . . . . . . Repair Stations . | . . . . . . . . . . . . Recycling Units . | . . . . . . . . . . . . Scanalyzers . | . . . . . . . . . . . . Garrison Access 1 | . . . . . . . . 1 . . . Total Hacks 33 | . 10 . 1 2 2 . . 2 . . 16 Successful 20 | . 2 . 1 1 . . . . . . 16 Failed 12 | . 7 . . 1 2 . . 2 . . . Catastrophic 2 | . 2 . . . . . . . . . . Database Lockouts 1 | . 1 . . . . . . . . . . Manual 19 | . 13 . 1 2 2 . . . . . 1 Terminals 14 | . 10 . . 2 2 . . . . . . Fabricators . | . . . . . . . . . . . . Repair Stations . | . . . . . . . . . . . . Recycling Units . | . . . . . . . . . . . . Scanalyzers . | . . . . . . . . . . . . Garrison Access 2 | . . . . . . . . 2 . . . Terminal Hacks 20 | . 2 . 1 1 . . . . . . 16 Record 15 | . . . . . . . . . . . 15 Robot Analysis 2 | . 1 . . 1 . . . . . . . Open Door 1 | . . . . . . . . . . . 1 Registered Components 1 | . 1 . . . . . . . . . . Proto ID Catalog 1 | . . . 1 . . . . . . . . Fabricator Hacks . | . . . . . . . . . . . . Repair Station Hacks . | . . . . . . . . . . . . Recycling Unit Hacks . | . . . . . . . . . . . . Scanalyzer . | . . . . . . . . . . . . Garrison Access Hacks . | . . . . . . . . . . . . Unauthorized Hacks . | . . . . . . . . . . . . Terminals . | . . . . . . . . . . . . Fabricators . | . . . . . . . . . . . . Repair Stations . | . . . . . . . . . . . . Recycling Units . | . . . . . . . . . . . . Scanalyzers . | . . . . . . . . . . . . Garrison Access . | . . . . . . . . . . . . Data Cores Recovered . | . . . . . . . . . . . . Used . | . . . . . . . . . . . . Hacking Detections 8 | . 5 . . 1 1 . . 1 . . . Full Trace Events . | . . . . . . . . . . . . Feedback Events . | . . . . . . . . . . . . Feedback Blocked . | . . . . . . . . . . . . Robot Schematics Acquired . | . . . . . . . . . . . . Robots Built . | . . . . . . . . . . . . Authchips . | . . . . . . . . . . . . Time . | . . . . . . . . . . . . Total Robot Build Rating . | . . . . . . . . . . . . Part Schematics Acquired . | . . . . . . . . . . . . Parts Built . | . . . . . . . . . . . . Authchips . | . . . . . . . . . . . . Time . | . . . . . . . . . . . . Total Part Build Rating . | . . . . . . . . . . . . Parts Repaired . | . . . . . . . . . . . . Time . | . . . . . . . . . . . . Parts Recycled . | . . . . . . . . . . . . Recycled Matter . | . . . . . . . . . . . . Retrieved Matter . | . . . . . . . . . . . . Retrieved Components . | . . . . . . . . . . . . Parts Scanalyzed . | . . . . . . . . . . . . Part Schematics Acquired . | . . . . . . . . . . . . Parts Damaged . | . . . . . . . . . . . . Bothacking | -11 -10 -10 -10 -9 -8 -7 -6 -5 -4 -4 -4 ------------ Run | Yrd Mat Min Exi Min Mat Fac Fac Fac Fac Upp War Used RIF Installer . | . . . . . . . . . . . . Robots Hacked . | . . . . . . . . . . . . Non-combat . | . . . . . . . . . . . . Combat . | . . . . . . . . . . . . Robot Hacks Applied . | . . . . . . . . . . . . Relay Couplers Released 4 | . . . . . 1 . 3 . . . . Machine Destruction 1 | . . . . . 1 . . . . . . Programmers 3 | . . . . . . . 3 . . . . Fabnet Peak Effective % . | . . . . . . . . . . . . Robots Rewired 1 | . . . . . . . . . . 1 . Allies Hacked . | . . . . . . . . . . . . Hacks Repelled . | . . . . . . . . . . . . Allies | -11 -10 -10 -10 -9 -8 -7 -6 -5 -4 -4 -4 -------- Run | Yrd Mat Min Exi Min Mat Fac Fac Fac Fac Upp War Total Allies 1 | . . . . . . . . . . 1 . Largest Group 1 | . . . . . . . . . . 1 1 Highest-Rated Group 44 | . . . . . . . . . . 44 44 Highest-Rated Ally 44 | . . . . . . . . . . 44 44 Total Orders . | . . . . . . . . . . . . Ally Attacks 1 | . . . . . . . . . . . 1 Total Damage . | . . . . . . . . . . . . Kills . | . . . . . . . . . . . . Allies Corrupted . | . . . . . . . . . . . . Allies Melted 4 | . . . . . . . . . . . 4 Intel | -11 -10 -10 -10 -9 -8 -7 -6 -5 -4 -4 -4 ------- Run | Yrd Mat Min Exi Min Mat Fac Fac Fac Fac Upp War Active Infowar (turns) 4835 | 10 815 191 444 344 748 428 563 469 329 494 . Structural 3004 | . . . . . 747 428 563 469 329 468 . Seismic 2578 | 10 815 191 444 344 622 . . . . 152 . Robot Analysis Total 2 | . 1 . . 1 . . . . . . . Derelict Logs Recovered 1 | . . . . . . . . . . 1 . Drone Launches . | . . . . . . . . . . . . Drone Recoveries . | . . . . . . . . . . . . Exploration | -11 -10 -10 -10 -9 -8 -7 -6 -5 -4 -4 -4 ------------- Run | Yrd Mat Min Exi Min Mat Fac Fac Fac Fac Upp War Turns Passed 8557 | 154 1468 191 444 873 749 428 563 469 329 1038 1851 Spaces Moved 4231 | 97 782 119 277 345 369 254 336 278 207 368 799 Core 99 | 4 1 . . . . . . . . 30 64 Treads 3979 | . 722 119 277 345 369 254 336 278 207 338 734 Legs 153 | 93 59 . . . . . . . . . 1 Wheels . | . . . . . . . . . . . . Hover . | . . . . . . . . . . . . Flight . | . . . . . . . . . . . . Fastest Speed 50 | 50 120 160 160 160 145 145 145 145 147 147 50 Average Speed 180 | 117 159 160 160 234 151 145 145 150 147 240 225 Slowest Speed 1050 | 120 250 160 160 240 160 145 145 225 147 1050 250 Overloaded Moves . | . . . . . . . . . . . . Propulsion Burnouts . | . . . . . . . . . . . . Robots Hopped . | . . . . . . . . . . . . Potential Cave-ins . | . . . . . . . . . . . . Cave-ins Triggered . | . . . . . . . . . . . . Exploration Rate (%) 39 | 6 98 19 62 73 31 12 12 10 9 56 84 Regions Visited 11 Branch Regions 5 Pre-discovered Areas 1 | . . 1 . . . . . . . . . Known Exits Taken . | . . . . . . . . . . . . Unknown Exits Taken 11 | 1 1 1 1 1 1 1 1 1 1 1 . Scrap Searched 2 | . . . . 1 . . . . . 1 . Spaces Dug 25 | . . . . 17 . 8 . . . . . Terrain Destroyed 224 | . . . . 105 17 39 . . . 39 24 Melee . | . . . . . . . . . . . . Projectile 1 | . . . . . . . . . . 1 . AOE 223 | . . . . 105 17 39 . . . 38 24 Terrain Rammed . | . . . . . . . . . . . . Walls Destroyed . | . . . . . . . . . . . . Machines Disabled . | . . . . . . . . . . . . Actions | -11 -10 -10 -10 -9 -8 -7 -6 -5 -4 -4 -4 --------- Run | Yrd Mat Min Exi Min Mat Fac Fac Fac Fac Upp War Total 4799 | 121 910 119 278 383 506 286 386 307 227 443 833 Wait 159 | . 48 . . 2 68 1 20 . 8 8 4 Move 4220 | 96 781 118 276 344 368 253 335 277 206 367 799 Hop . | . . . . . . . . . . . . Pick Up 62 | 6 12 . 1 2 16 7 4 4 3 1 6 Fast Attach 22 | 7 3 . . 1 1 . . 2 . 1 7 Attach 36 | . 1 . . 4 7 2 3 4 3 8 4 Detach 6 | . . . . 1 . . . 2 . . 3 Swap 32 | . 13 1 . 4 6 4 . 2 . 2 . Drop 24 | . 3 . 1 2 3 5 2 4 . 3 1 Fire 203 | 12 47 . . 21 36 14 13 12 2 37 9 Melee . | . . . . . . . . . . . . Ram . | . . . . . . . . . . . . Kick . | . . . . . . . . . . . . Crush 8 | . 2 . . 2 1 . 3 . . . . Escape Stasis . | . . . . . . . . . . . . Rewire 27 | . . . . . . . 6 . 5 16 . Trap . | . . . . . . . . . . . . Miscellaneous . | . . . . . . . . . . . . Route ------- -11/Scrapyard -10/Materials (discovered 5 exits: [*Mat x3] / [*Min] / [*Sub]) -10/Mines -10/Exiles (discovered 2 exits: *Min x2) -9/Mines -8/Materials -7/Factory -6/Factory -5/Factory -4/Factory -4/Upper Caves -4/Warlord History --------- Turn | Location | Event 26 | -11/Scrapyard | Discovered new exit (range 15) 155 | -11/Scrapyard | Entered Materials 203 | -10/Materials | Central database locked down 327 | -10/Materials | Build established: Mutant 599 | -10/Materials | Discovered new exit (range 13) 685 | -10/Materials | Discovered new exit (range 12) 1118 | -10/Materials | Discovered new exit (range 16) 1372 | -10/Materials | Discovered new exit (range 12) 1449 | -10/Materials | Discovered new exit (range 5) 1623 | -10/Materials | Entered Mines 1624 | -10/Mines | Learned location of Storage (-7) 1655 | -10/Mines | Deemed a non-threat by the Exiles lab entrance 1655 | -10/Mines | Discovered new exit (range 5) 1814 | -10/Mines | Entered Exiles 1850 | -10/Exiles | Discovered new exit (range 14) 1883 | -10/Exiles | Met 8R-AWN 1909 | -10/Exiles | Met EX-HEX 1957 | -10/Exiles | Met EX-BIN 1976 | -10/Exiles | Aligned with FarCom system 1978 | -10/Exiles | Given EX-Vault access code 2016 | -10/Exiles | Opened EX-Vault 2028 | -10/Exiles | Found Cloak of Protection 2061 | -10/Exiles | Warned to stay clear of 0b10 Research branches 2083 | -10/Exiles | Exiles lab attacked by MAIN.C 2242 | -10/Exiles | Discovered new exit (range 12) 2258 | -10/Exiles | Left Exiles lab with Cloak of Protection 2258 | -10/Exiles | Entered Mines 2276 | -9/Mines | Met a Derelict bent on vengeance 2579 | -9/Mines | Assembled infested the area 2584 | -9/Mines | Assisted by a Guerilla fighting off Assembled 2803 | -9/Mines | Destroyed 7 combat bots 2805 | -9/Mines | Lost 3 parts (1p1u1w) 3114 | -9/Mines | Discovered new exit (range 6) 3131 | -9/Mines | Entered Materials 3131 | -8/Materials | Evolved 4 slots: Propulsion x2, Utility x2 3232 | -8/Materials | Met 7R-MNS 3663 | -8/Materials | Lost 4 parts (1p3n) 3667 | -8/Materials | Discovered new exit (range 15) 3880 | -8/Materials | Entered Factory 3880 | -7/Factory | Evolved 2 slots: Weapon x2 3881 | -7/Factory | Caught up to 7R-MNS 4208 | -7/Factory | Build established: Tank 4284 | -7/Factory | Discovered new exit (range 15) 4308 | -7/Factory | Entered another Factory area 4308 | -6/Factory | Evolved 2 slots: Utility x2 4309 | -6/Factory | Caught up to 7R-MNS 4753 | -6/Factory | Garrison activated, responded to threat 4863 | -6/Factory | Discovered new exit (range 6) 4871 | -6/Factory | Entered another Factory area 4871 | -5/Factory | Evolved 2 slots: Power x1, Utility x1 4872 | -5/Factory | Caught up to 7R-MNS 5228 | -5/Factory | Garrison activated, responded to threat 5308 | -5/Factory | Discovered new exit (range 9) 5340 | -5/Factory | Entered another Factory area 5340 | -4/Factory | Evolved 2 slots: Propulsion x2 5341 | -4/Factory | Caught up to 7R-MNS 5648 | -4/Factory | Build established: Scavenger-Tank 5662 | -4/Factory | Discovered new exit (range 5) 5663 | -4/Factory | 7R-MNS successfully reached the Upper Caves 5669 | -4/Factory | Entered Upper Caves 5812 | -4/Upper Caves | Learned location of 1 exit from Research 5918 | -4/Upper Caves | Ambushed by wild Derelicts 5975 | -4/Upper Caves | System corruption reached 10% 6005 | -4/Upper Caves | Lost 3 parts (1u2w) 6062 | -4/Upper Caves | Attracted the attention of an 0b10 checkpoint 6138 | -4/Upper Caves | Attracted the attention of an 0b10 outpost 6215 | -4/Upper Caves | Destroyed 8 combat bots 6219 | -4/Upper Caves | Lost 15 parts (1p6n4u4w) 6498 | -4/Upper Caves | Build established: Mutant 6684 | -4/Upper Caves | A Derelict revealed a hidden shortcut to "reach the base" 6707 | -4/Upper Caves | Entered Warlord 6707 | -4/Warlord | Accompanied by 1 ally 6805 | -4/Warlord | System corruption cleaned by Quarantine Array 7334 | -4/Warlord | Found Signal Generator 7610 | -4/Warlord | Met Warlord 7635 | -4/Warlord | Warlord's base attacked by MAIN.C 7985 | -4/Warlord | Warlord forces counterattacked 8011 | -4/Warlord | Lost 4 allies 8114 | -4/Warlord | Found Prototype Launcher 8118 | -4/Warlord | Found Prototype Energy Gun 8310 | -4/Warlord | Warlord base infiltrated, sounded retreat 8379 | -4/Warlord | Lost 8 allies 8436 | -4/Warlord | Spotted Striker 8443 | -4/Warlord | Spotted Striker 8484 | -4/Warlord | Lost 11 allies 8522 | -4/Warlord | Core integrity fell below 50% 8549 | -4/Warlord | Core integrity fell below 20% 8555 | -4/Warlord | Lost 9 parts (1p6n2w) 8558 | -4/Warlord | Spotted Executioner 8558 | -4/Warlord | Destroyed by G-73 Enforcer with Heavy Laser Last Messages --------------- 08544_ Slug penetrates Door. 08544_ Penetrated by Slug. 08544_ Slug penetrates Wall. 08545_ Acquired Carbon-fiber Leg. 08548_ Slug penetrates S-27 Virus. 08548_ S-27 Virus destroyed. 08548_ Penetrated by Slug. 08548_ Slug penetrates Wall. 08548_ Acquired Flexi-carbon Leg. 08549_ G-67 Veteran IFF system glitched. 08550_ Acquired 20 matter. 08551_ Penetrated by Slug. 08554_ Slug penetrates Wall. 08556_ Flexi-carbon Leg destroyed. [Achievement: Hunted] 08557_ Carbon-fiber Leg destroyed. 08557_ Critical hit (Burn: +50). 08557_ Penetrated by Slug. 08557_ Adv. Targeting Computer blown off. 08557_ E-15 Imp destroyed. Map ----- +----------------------------------------------------+ | # # """" """" ## #?????????????????? | | # + #?????????????????? | | # ## #?????????????????? | | + ## #?????????????????? | | # %= ##### #########?????????????????? | | # = #???# #?????????????????????????? | | # % # #????# #?????????????????????????? | | ## ?????###+## ##????????????????????????? | | # #?????# ## #????????????????????????? | | #??????# ## ##????????????????????????? | | #??????# [## #??????""?????????????????? | | ##??????#] [## % #?????#""#????????????????? | | #???????####;;[ #??#?##""#????????????????? | | # #???##????###[=! ## #""#####????????????? | | # #### ###??; !%!%= "" = ! ###########?? | | # # ####!=%!! # "" =""""""""""#?? | | # !" ;#;==== # ""* """""""""""#?# | | ! !*= % %[% g g g ### | | = % !% %! !=]= p=! % g E + | | !!= *%= g=%%g=%= g % x + | | !" [*=%!=%= %gegeg== !% gggg= ### | | "#%###" [ e e *g%! =p # "" g """"""""""""#?? | | #[!# e =e /%==% "" """"""""""""#?? | | ###*# p[%!* "" "############?? | | #?#!" # #### ![ ##""#####????????????? | | ### " ###### @#??#""#????????????????# | | " # =!e ##?#""#????????????????# | | ####" # =%e= #??""#???????????????## | | #???" # =e ;#??""????????????????# | | ????" # e ;#????????????????????# | | ????##""#"##### ##????????????????????# | | ?????? ####???# * #?????????????????????# | | ########??????# =% #????????????????????## | | """"""#??????## ######??????????????## | | "#??????#! #??????????????# | | "#?????##%= #??????????????# # | | "#?????# """ #?????????????# #? | | ""#?????## *=[ """" #???????????? ?? | | "#??????# [[!== """" #?????????? ?? | | "#??????###+####[%%* """ #?????????# ## ?? | | "#?????????????##*% #?????????####?#??? | | """"""#??????????????#%[ #?????????????????? | | #######??????????????# = ######?????????????????? | | ?????????????????????#! #??????????????????????? | | ##???????????????????# #??????????????????????? | | ##??????????????????#= #??????????????????????? | | #?????????##########%= ##?????????????????????? | | ############ "[ #?????????????????????? | | " !! # ##?????????????????????? | | ############# ! ] " #######X#??????????????? | +----------------------------------------------------+ Best States ------------- Heat Dissipation 59 Energy Generation 25 Energy Capacity 350 Matter Stores 300 Matter Capacity 300 Sight Range 16 Terrain Scan Density 10 Armor Coverage 600 Evasion (%) 55 Targeting Accuracy 8 Recoil Reduction 6 Item Schematics ----------------- None Robot Schematics ------------------ None Fabricated ------------ Nothing Repaired ---------- Nothing Alien Tech Used ----------------- None Achievements -------------- A Powerful Ally? Hunted I Survived The Infestation It Was An Accident, I Swear Leap Before You Look Remodeling Challenges ------------ None Game ------ Seed RemoteBackupTerrabomb Manual? 0 Play Time 01:18:24 Cumulative 18.7 hours Start 2025.06.10 @ 16:48:15 End 2025.06.10 @ 18:17:03 Sessions 1 Manual Loads 0 Difficulty Rogue Special Mode None Game No. 23 Rogue 23 Adventurer 0 Explorer 0 Win Type - Total 0 Types 0/0/0/0/0/0/0/0/0/0 Lore% 20 Gallery% 21 Achievement% 22 Wizard Run 0 Options --------- Layout 1 ASCII 0 Keyboard 0 Movement Mouse Keybinds 0 Fullscreen 1 Font 24/Smallcaps Map View 50x40 Zoom Use 0% Tactical HUD 1 Map Filters NONE Filters NONE Steam 1 RUN: aeb6d655-b726-41a6-99b9-17ae28921cdf